Cogmind - Beta 13 @@@ ROGUE MODE // 2024.04.07 @ 23:29:47 Player: BVrutally Odd Result: Destroyed by RV-XJV(R) with Subdweller Beam Cannon Performance ------------- Evolutions (0) 0 Regions Visited (2) 400 Robots Destroyed (24) 120 Value Destroyed (757) 757 Prototype IDs (2) 40 Alien Tech Used (0) 0 Bonus (0) 0 TOTAL SCORE: 1317 Bonus ------- None Cogmind --------- Core Integrity 0/250 Matter 278/300 Energy 248/250 System Corruption 0% Temperature Cool (9) Movement Core (250) Ox4 Location -10/Subcaves Parts ------- > --- POWER (1) -------- Ion Engine > --- PROPULSION (2) --- Spiked Treads > --- UTILITY (2) ------ (None) > --- WEAPON (2) ------- Subdweller Machine Gun Subdweller Machine Gun > --- INVENTORY (5) ---- Huge Storage Unit Structural Scanner Subdweller Beam Cannon Subdweller Machine Gun Makeshift Sword Peak State ------------ > --- POWER ------------ Ion Engine > --- PROPULSION ------- Spiked Treads Wheel > --- UTILITY ---------- Huge Storage Unit Makeshift Light Armor Plating > --- WEAPON ----------- Subdweller Machine Gun Subdweller Machine Gun > --- INVENTORY -------- Light Treads Light Treads Light Treads Aluminum Leg Aluminum Leg Small Storage Unit High-capacity Matter Pod Structural Scanner Subdweller Optics Assault Rifle Subdweller Machine Gun Scrap Shield Fragment [Rating: 14] Favorites ----------- Power Ion Engine Engine Ion Engine Power Core Light Nuclear Core Propulsion Light Treads Treads Light Treads Wheel Wheel Utility Huge Storage Unit Storage Huge Storage Unit Protection Backup Plating I Weapon Medium Laser Energy Gun Medium Laser Ballistic Gun Assault Rifle Ballistic Cannon Light Cannon Build | -11 -10 -10 ------- Run | Yrd Mat Sub Slots Evolved . | . . . Power . | . . . Propulsion . | . . . Utility . | . . . Weapon . | . . . Parts Attached 25 | 6 12 7 Power 4 | 1 3 . Engine 2 | 1 1 . Core 2 | . 2 . Reactor . | . . . Propulsion 9 | 2 5 2 Treads 7 | 2 3 2 Leg . | . . . Wheel 2 | . 2 . Hover . | . . . Flight . | . . . Utility 4 | 1 1 2 Device . | . . . Storage 2 | 1 1 . Processor . | . . . Hackware . | . . . Protection 2 | . . 2 Artifact . | . . . Weapon 8 | 2 3 3 Energy Gun 2 | . 2 . Energy Cannon . | . . . Ballistic Gun 5 | 2 1 2 Ballistic Cannon 1 | . . 1 Launcher . | . . . Special Weapon . | . . . Impact Weapon . | . . . Slashing Weapon . | . . . Piercing Weapon . | . . . Special Melee Weapon . | . . . Unidentified Prototypes . | . . . Parts Lost 7 | . 4 3 Power 2 | . 2 . Propulsion 2 | . . 2 Utility 2 | . 1 1 Weapon 1 | . 1 . Highest Loss Streak 3 | . 3 2 To Critical Strikes . | . . . Average Slot Usage (%) 89 | . 90 87 Engine 11 | . 9 14 Core 2 | . 3 . Treads 17 | . 19 14 Wheel 10 | . 8 13 Storage 11 | . 14 8 Protection 6 | . 6 8 Energy Gun 9 | . 11 7 Ballistic Gun 16 | . 16 15 Ballistic Cannon 2 | . . 4 Naked Turns . | . . . Heaviest Build 97 | 11 90 97 Greatest Support 40 | 40 40 10 Greatest Overweight (x) 9 | . 8 9 Average Overweight (x) 4 | . 4 5 Largest Inventory Capacity 25 | 8 25 25 Average Capacity 17 | 7 19 16 Most Carried 12 | 4 10 12 Average Carried 7 | 2 8 7 Final Capacity 25 | 8 25 5 Final Carried 9 | 4 9 5 Class Distribution -------------------- 83% | Mutant 16% | Subdweller-Mutant Dominant Class ---------------- Mutant | -10/Materials Mutant | -10/Subcaves Resources | -11 -10 -10 ----------- Run | Yrd Mat Sub Matter Collected 1098 | 268 494 336 Remotely . | . . . Salvage Created 1056 | 93 687 276 Parts 51 | 3 28 20 Haulers Intercepted 2 | . 2 . Recyclers Shooed . | . . . Parts Field Recycled . | . . . Retrieved Matter . | . . . Parts Self-Destructed 4 | . . 4 Prevented . | . . . Kills | -11 -10 -10 ------- Run | Yrd Mat Sub Combat Hostiles Destroyed 20 | . 13 7 Guns 20 | . 13 7 Classes Destroyed 6 | 1 3 2 Hauler 2 | . 2 . Recycler 1 | 1 . . Watcher 1 | . 1 . Swarmer 1 | . . 1 Grunt 13 | . 13 . Subdweller 6 | . . 6 Best Kill Streak 3 | 1 3 2 Combat Bots Only 3 | . 3 2 Max Kills in Single Turn 1 | 1 1 1 Gunslinging . | . . . Exploded . | . . . Melee . | . . . Uniques/NPCs Destroyed . | . . . Combat | -11 -10 -10 -------- Run | Yrd Mat Sub Hostile Shots Fired 113 | . 72 41 Missed 27 | . 16 11 Damage Taken 1301 | . 654 647 Core 251 | . 143 108 Absorbed by Shields . | . . . Core Remaining (%) 100 | 100 . . Volleys Fired 137 | 2 59 76 Largest 2 | 2 2 2 Hottest 85 | 40 70 85 Shots Fired 223 | 4 118 101 Gun 163 | 4 118 41 Cannon 60 | . . 60 Launcher . | . . . Special . | . . . Kinetic 171 | 4 76 91 Thermal 52 | . 42 10 Explosive . | . . . Electromagnetic . | . . . Robot Hit Streak 14 | 3 14 10 Robot Miss Streak 3 | . 3 2 Penetration Max . | . . . Secondary Targets 2 | . 2 . Max Gunslinging Chain 1 | . 1 . Shots Hit Robots 115 | 3 80 32 Core Hits 49 | 2 36 11 Critical Kills . | . . . Critical Parts Destroyed . | . . . Critical Strikes 3 | . 2 1 Burn 2 | . 2 . Blast 1 | . . 1 Melee Attacks . | . . . Impact . | . . . Slashing . | . . . Piercing . | . . . Sneak Attacks . | . . . Combat Hostiles . | . . . Follow-up Attacks . | . . . Damage Inflicted 1559 | 39 951 569 Guns 1540 | 39 951 550 Cannons 19 | . . 19 Explosions . | . . . Melee . | . . . Ramming . | . . . Kinetic 1118 | 39 561 518 Thermal 441 | . 390 51 Explosive . | . . . Electromagnetic . | . . . Impact . | . . . Slashing . | . . . Piercing . | . . . Highest Corruption . | . . . Average Corruption . | . . . Corruption Purged . | . . . Corruption Blocked . | . . . Overload Shots . | . . . Overflow Damage . | . . . Projectiles . | . . . Explosions . | . . . Melee . | . . . Knockbacks . | . . . Impact . | . . . Kinetic . | . . . Secondary . | . . . Self-Inflicted Damage . | . . . Shots . | . . . Rammed . | . . . Targets Rammed . | . . . Kicked . | . . . Crushed . | . . . Highest Temperature 151 | . 151 . Average Temperature 53 | . 53 . Received Heat Transfer 522 | . 408 114 Siege Activations . | . . . Robots Corrupted . | . . . Combat Hostiles . | . . . Parts Fried . | . . . Impact Corruptions . | . . . Robots Melted . | . . . Combat Hostiles . | . . . Parts Melted 3 | . 3 . Heat Transferred 1443 | . 1295 148 Parts Sabotaged . | . . . Parts Stolen . | . . . Parts Stripped . | . . . Power Chain Reactions . | . . . Alert | -11 -10 -10 ------- Run | Yrd Mat Sub Peak Influence 157 | 5 157 . Initial 3 | . 3 . Average 53 | 2 56 . Maximum Alert Level . | . . . Low Security (%) 100 | 100 100 . Level 1 . | . . . Level 2 . | . . . Level 3 . | . . . Level 4 . | . . . Level 5 . | . . . High Security . | . . . Max Security . | . . . Squads Dispatched 2 | . 2 . Investigation 1 | . 1 . Extermination . | . . . Reinforcement 1 | . 1 . Assault . | . . . Garrison . | . . . Intercept . | . . . Searches Triggered . | . . . Construction Impeded . | . . . Haulers Reinforced . | . . . Active Scanning Responses . | . . . Cargo Convoy Interrupts . | . . . Stealth | -11 -10 -10 --------- Run | Yrd Mat Sub Distress Signals 1 | . 1 . Communications Jammed . | . . . Distress Signals . | . . . Times Spotted 37 | . 23 14 Peak Tracking Total 4 | . 4 3 Tactical Retreats 5 | . 2 3 Traps | -11 -10 -10 ------- Run | Yrd Mat Sub Traps Triggered 2 | . 2 . Indirectly . | . . . Trap Hack Attempts . | . . . Triggered . | . . . Disarmed . | . . . Reprogrammed . | . . . Reused . | . . . Traps Extracted . | . . . Installed . | . . . Triggered . | . . . Machines | -11 -10 -10 ---------- Run | Yrd Mat Sub Machines Disabled 1 | . 1 . Max in Single Turn 1 | . 1 . Machines Repaired . | . . . Machines Dismantled . | . . . Machines Sabotaged . | . . . Overloaded Fab Kills . | . . . Hacking | -11 -10 -10 --------- Run | Yrd Mat Sub Machines Accessed 7 | . 7 . Terminals 5 | . 5 . Fabricators . | . . . Repair Stations 1 | . 1 . Recycling Units 1 | . 1 . Scanalyzers . | . . . Garrison Access . | . . . Total Hacks 17 | . 17 . Successful 8 | . 8 . Failed 9 | . 9 . Catastrophic . | . . . Database Lockouts . | . . . Manual 4 | . 4 . Terminals 14 | . 14 . Fabricators . | . . . Repair Stations 1 | . 1 . Recycling Units 2 | . 2 . Scanalyzers . | . . . Garrison Access . | . . . Terminal Hacks 6 | . 6 . Prototype ID Bank 1 | . 1 . Branch Access Points 1 | . 1 . Unreport Threat 1 | . 1 . Hauler Manifests 1 | . 1 . Registered Components 1 | . 1 . Zone Layout 1 | . 1 . Fabricator Hacks . | . . . Repair Station Hacks 1 | . 1 . Refit 1 | . 1 . Recycling Unit Hacks 1 | . 1 . Retrieve Components 1 | . 1 . Scanalyzer . | . . . Garrison Access Hacks . | . . . Unauthorized Hacks . | . . . Terminals . | . . . Fabricators . | . . . Repair Stations . | . . . Recycling Units . | . . . Scanalyzers . | . . . Garrison Access . | . . . Data Cores Recovered . | . . . Used . | . . . Hacking Detections 5 | . 5 . Full Trace Events . | . . . Feedback Events . | . . . Feedback Blocked . | . . . Robot Schematics Acquired . | . . . Robots Built . | . . . Authchips . | . . . Time . | . . . Total Robot Build Rating . | . . . Part Schematics Acquired . | . . . Parts Built . | . . . Authchips . | . . . Time . | . . . Total Part Build Rating . | . . . Parts Repaired . | . . . Time . | . . . Parts Recycled . | . . . Recycled Matter . | . . . Retrieved Matter . | . . . Retrieved Components 2 | . 2 . Parts Scanalyzed . | . . . Part Schematics Acquired . | . . . Parts Damaged . | . . . Bothacking | -11 -10 -10 ------------ Run | Yrd Mat Sub Used RIF Installer . | . . . Robots Hacked . | . . . Non-combat . | . . . Combat . | . . . Robot Hacks Applied . | . . . Relay Couplers Released . | . . . Fabnet Peak Effective % . | . . . Robots Rewired . | . . . Allies Hacked . | . . . Hacks Repelled . | . . . Allies | -11 -10 -10 -------- Run | Yrd Mat Sub Total Allies . | . . . Largest Group . | . . . Highest-Rated Group . | . . . Highest-Rated Ally . | . . . Total Orders . | . . . Ally Attacks . | . . . Total Damage . | . . . Kills . | . . . Allies Corrupted . | . . . Allies Melted . | . . . Intel | -11 -10 -10 ------- Run | Yrd Mat Sub Robot Analysis Total . | . . . Derelict Logs Recovered . | . . . Drone Launches . | . . . Drone Recoveries . | . . . Exploration | -11 -10 -10 ------------- Run | Yrd Mat Sub Turns Passed 2935 | 116 1665 1154 Spaces Moved 1195 | 67 537 591 Core 8 | 8 . . Treads 279 | 59 220 . Legs . | . . . Wheels 908 | . 317 591 Hover . | . . . Flight . | . . . Fastest Speed 50 | 50 160 125 Average Speed 169 | 146 185 157 Slowest Speed 320 | 160 320 215 Overloaded Moves . | . . . Propulsion Burnouts . | . . . Robots Hopped . | . . . Cave-ins Triggered . | . . . Exploration Rate (%) 44 | 5 87 40 Regions Visited 2 Branch Regions 1 Pre-discovered Areas . | . . . Known Exits Taken . | . . . Unknown Exits Taken 2 | 1 1 . Scrap Searched 2 | . . 2 Spaces Dug . | . . . Terrain Destroyed . | . . . Melee . | . . . Projectile . | . . . AOE . | . . . Terrain Rammed . | . . . Walls Destroyed . | . . . Machines Disabled . | . . . Actions | -11 -10 -10 --------- Run | Yrd Mat Sub Total 1877 | 78 1085 714 Wait 490 | . 469 21 Move 1193 | 66 536 591 Hop . | . . . Pick Up 18 | 4 7 7 Fast Attach 16 | 6 6 4 Attach 2 | . 1 1 Detach . | . . . Swap 7 | . 5 2 Drop 10 | . 2 8 Fire 137 | 2 59 76 Melee . | . . . Ram . | . . . Kick . | . . . Crush . | . . . Escape Stasis . | . . . Rewire . | . . . Trap . | . . . Miscellaneous 4 | . . 4 Route ------- -11/Scrapyard -10/Materials (discovered 4 exits: [*Mat x2] / *Min / [*Sub]) -10/Subcaves History --------- Turn | Location | Event 3 | -11/Scrapyard | Discovered new exit (range 16) 117 | -11/Scrapyard | Entered Materials 308 | -10/Materials | Build established: Mutant 490 | -10/Materials | Discovered new exit (range 7) 498 | -10/Materials | Identified exit to Mines 828 | -10/Materials | Discovered new exit (range 3) 1148 | -10/Materials | Lost 3 parts (1p1u1w) 1274 | -10/Materials | Core integrity fell below 50% 1435 | -10/Materials | Discovered new exit (range 16) 1747 | -10/Materials | Discovered new exit (range 7) 1782 | -10/Materials | Entered Subcaves 2318 | -10/Subcaves | Core integrity fell below 20% 2749 | -10/Subcaves | Build established: Subdweller-Mutant 2853 | -10/Subcaves | Shifting Twisted Machinery released Mak. Sword 2870 | -10/Subcaves | Shifting Twisted Machinery released Mak. Hammer 2907 | -10/Subcaves | Shifting Twisted Machinery released Sub. Shrapnel Launcher 2936 | -10/Subcaves | Destroyed by RV-XJV(R) with Subdweller Beam Cannon Last Messages --------------- 02457_ Scrap Shield Fragment affixed to Scrap Shield (+20). 02459_ Dropped Lgt. Treads. 02460_ Acquired Sub. Beam Cannon. 02462_ Dropped Hcp. Matter Pod. 02462_ Extracted 179 matter. 02465_ Acquired Huge Storage Unit. 02475_ Subatomizers dissect the Sub. Power Source. 02683_ 1N-10P(R) destroyed. 02686_ YO-0RU(R) destroyed. 02689_ Acquired 16 matter. 02693_ Scrap Shield Fragment affixed to Scrap Shield (+47). 02698_ Scrap Shield Fragment affixed to Scrap Shield (+38). Mak. Sword falls loose from the Twisted Machinery. 02865_ Dropped Lgt. Treads. 02865_ Acquired Mak. Sword. Mak. Hammer falls loose from the Twisted Machinery. Sub. Shrapnel Launcher falls loose from the Twisted Machinery. 02920_ Wheel destroyed. 02927_ TP-JQ1(R) destroyed. 02930_ Scrap Shield destroyed. Map ----- +----------------------------------------------------+ | ?????????????????????????????????????????????????? | | ?????????????????????????????????????????????????? | | ?????????????????????????????????????????????????? | | ?????????????????????????????????????????????????? | | ?????????????????????????????????????????????????? | | ?????????????????????????????????????????????????? | | ?????????????????????????????????????????????????? | | ?????????????????????????????????????????????????? | | ?????????????????????????????????????????????????? | | ?????????????????????????????????????????????????? | | ?????????????????????????????????????????????????? | | ?????????????????????????????????????????????????? | | ?????????????????????????????????????????????????? | | ???????????????????????????"?????????????????????? | | ??????????????????????????" ?????????????????????? | | ??????????????????????????" ?????????????????????? | | ?????????????????????????"" ?????????????????????? | | ?????????????????????????# ??""?????????????????? | | ????????????????????????## ###""#????????????????? | | ????????????????????????# " #"""#????????????????? | | ???????????????????????## ""#?????????????????? | | ??????????????????????? ??????????????????? | | ???????????????????????? ???????????????????? | | ????????????????????????# ###??????????????????? | | ????????????????????""??# ; #??????????????????? | | ???????????????????""""##@ ;#???????????????????? | | ??????????????????#"""""] ##??????????????????? | | ???????????????? """"R! ##?????????????????? | | ?????????????????# " "&%! ###???????????????? | | ?????????????????# "" * "## ##??????????????? | | ?????????????????#""" "## #??????????????? | | ????????????? ##??####" "### #??????????????? | | ????????????? ##???##" #### #??????????????? | | ????????????? ?????###### ####??????????????? | | ????????????? ????????# ##?????????????????? | | ?????????????# ????????# ##??????????????????? | | ?????????????# ???????## " #???????????????????? | | ????????????? #???????# ##???????????????????? | | ?????????????# ##??????# #????????????????????? | | ?????????????# #??????# ##???????????????????? | | ????????????? ?##????# " "#???????????????????? | | ##?###????##?# ### ##??## "###??###?????????????? | | ### #???# ### ?# #### "" ### #?????????????? | | #### # #??# " """#?????????????? | | ### ## #### ""/ "#?????????????? | | ## #???# ""## "## ""##?????????????? | | ##?## ####### ""#??????????????? | | ### ## =#?????# ""##??????????????? | | ## #### #????? ""##???????????????? | | ?## ## #??## #????? #????????????????? | +----------------------------------------------------+ Best States ------------- Heat Dissipation 25 Energy Generation 14 Energy Capacity 250 Matter Stores 300 Matter Capacity 300 Sight Range 16 Terrain Scan Density 10 Armor Coverage 800 Evasion (%) 40 Recoil Reduction 2 Item Schematics ----------------- None Robot Schematics ------------------ None Fabricated ------------ Nothing Alien Tech Used ----------------- None Achievements -------------- None Challenges ------------ None Game ------ Seed TargetingDrainedPurifier Manual? 0 Play Time 00:17:58 Cumulative 106.4 hours Start 2024.04.07 @ 23:13:06 End 2024.04.07 @ 23:29:47 Sessions 1 Manual Loads 0 Difficulty Rogue Special Mode None Game No. 56 Rogue 18 Adventurer 16 Explorer 22 Win Type - Total 19 Types 14/4/0/0/0/0/0/1/0 Lore% 67 Gallery% 72 Achievement% 68 Wizard Run 0 Options --------- Layout 0 ASCII 0 Keyboard 0 Movement Mouse Keybinds 0 Fullscreen 1 Font 24/Terminus Map View 76x50 Zoom Use 0% Tactical HUD 1 Map Filters NONE Filters NONE Steam 1 RUN: 870c97dd-9c09-4ccd-a71b-da2c3b49a505